bitfinex/quotes_ETHUSD_20260305
["timestamp","ask_amount","ask_price","bid_price","bid_amount"]
[1772674697865,0.5,2123.8,2122.7,1.17774532]
[1772674698101,0.5,2123.8,2122.9,1.07]
[1772674698899,0.5,2123.6,2122.9,2.24763279]
[1772674699275,0.5,2123.6,2122.9,1.07]
[1772674699674,0.5,2123.6,2122.9,2.24761072]
[1772674700086,0.5,2123.6,2122.9,1.07]
[1772674701100,0.5,2123.6,2122.5,0.0011]
[1772674701101,0.5,2123.4,2122.5,0.0011]
[1772674701299,0.5,2123.2,2122.5,0.0011]
[1772674702871,1.17739402,2123.4,2122.5,0.0011]
[1772674703094,1.67734448,2123.5,2122.5,0.0011]
[1772674703294,1.17728452,2123.6,2122.5,0.0011]
[1772674703994,1.67728452,2123.6,2122.5,0.0011]
[1772674704403,0.5,2123.5,2122.6,1.07]
[1772674704898,1.17735706,2123.4,2122.7,1.17774532]
[1772674705103,1.6773405,2123.5,2122.7,1.17774532]
[1772674705699,0.5,2123.5,2122.7,1.17774532]
[1772674705875,1.67730852,2123.5,2122.7,1.17774532]
[1772674706309,0.5,2123.5,2122.7,1.17774532]
[1772674706500,1.17728367,2123.6,2122.7,1.17774532]
[1772674707082,0.5,2123.6,2122.7,1.17774532]
[1772674707280,0.5,2123.6,2122.8,1.07]
[1772674709279,1.17730162,2123.5,2122.9,1.17763436]
[1772674709493,1.67730162,2123.5,2122.9,1.17763436]
[1772674709701,0.5,2123.5,2122.9,1.17763436]
[1772674711510,1.67734159,2123.5,2123.0,0.0011]
[1772674711915,1.67734159,2123.5,2123.0,1.0721]
[1772674712083,0.5,2123.5,2123.0,1.0721]
[1772674713085,1.17721205,2123.7,2123.0,1.0721]
[1772674713585,0.501,2123.8,2123.1,1.17752343]
[1772674713910,0.001,2123.8,2123.1,1.17752343]
[1772674714492,0.001,2124.2,2123.2,0.065536]
[1772674714688,0.001,2124.2,2123.3,3.37847344]
[1772674715086,0.501,2124.5,2123.5,3.52795843]
[1772674715087,0.001,2124.5,2123.5,3.52795843]
[1772674715397,0.5,2125.1,2123.9,0.065536]
[1772674715587,0.5,2125.1,2124.1,2.56869558]
[1772674715787,0.5,2125.4,2124.2,1.071]
[1772674717583,0.5,2125.4,2124.3,1.17685825]
[1772674717788,1.67625578,2125.4,2124.3,1.17685825]
[1772674717993,0.5,2125.4,2124.3,1.17685825]
[1772674718291,1.67611006,2125.7,2124.4,0.065536]
[1772674718501,0.001,2125.8,2124.5,0.34852177]
[1772674718704,0.001,2125.8,2124.7,0.14948499]
[1772674718902,0.001,2125.8,2124.6,0.2403571]
[1772674718903,0.5,2125.6,2124.4,0.17425387]
[1772674719112,0.5,2125.6,2124.5,1.072]
[1772674719490,0.5,2125.4,2124.6,1.072]
[1772674721019,0.5,2125.4,2124.6,2.24867391]
[1772674721316,0.5,2125.4,2124.4,0.17425387]
[1772674721706,0.5,2125.2,2124.4,1.3510539]
[1772674723296,0.501,2125.2,2124.4,1.3510539]
[1772674723506,0.501,2125.2,2124.4,0.17425387]
[1772674723730,0.501,2125.2,2124.4,0.07642972]
[1772674723731,0.5,2125.0,2124.4,0.07642972]
[1772674723926,0.5,2125.0,2123.2,0.0011]
[1772674723927,0.49421716,2124.9,2123.2,0.0011]
[1772674724095,2.08025715,2125.0,2123.3,1.069]
[1772674724096,0.49421716,2124.6,2123.3,1.069]
[1772674725050,0.49421716,2124.6,2123.3,1.14542972]
[1772674725517,0.49421716,2124.6,2123.3,1.069]
[1772674725703,0.49421716,2124.4,2123.4,1.067]
[1772674726019,0.49421716,2124.4,2123.3,1.067]
[1772674726514,0.49421716,2124.4,2123.2,0.0011]
[1772674726717,0.49421716,2124.4,2123.3,1.067]
[1772674727800,0.49421716,2124.2,2123.3,2.24438971]
[1772674728313,0.49421716,2124.2,2123.3,1.067]
[1772674728514,0.49421716,2124.2,2123.2,1.17854093]
[1772674728706,0.49421716,2124.2,2123.2,2.24654093]
[1772674730598,0.46265158,2124.0,2123.2,2.24654093]
[1772674731821,0.46265158,2124.0,2123.2,1.17854093]
[1772674732030,0.46265158,2124.0,2123.3,1.069]
[1772674732833,0.46265158,2123.8,2123.0,0.0011]
[1772674734818,0.46265158,2123.6,2123.0,0.0011]
[1772674735830,0.46265158,2123.6,2123.4,0.0011]
[1772674736031,0.46265158,2123.6,2123.0,0.0011]
[1772674736212,0.46265158,2123.6,2123.1,0.0011]
[1772674736829,1.17730162,2123.5,2123.1,0.0011]
[1772674737003,0.46265158,2123.4,2123.1,0.0011]
[1772674737903,0.46265158,2123.4,2123.0,0.0011]
[1772674739105,0.46265158,2123.2,2122.3,0.0011]
[1772674740835,0.46265158,2123.2,2122.3,1.17903702]
[1772674741137,0.46265158,2123.0,2122.3,0.0011]
[1772674742956,0.46265158,2123.0,2122.0,0.0011]
[1772674743238,0.46265158,2122.8,2122.0,0.0011]
[1772674744238,0.46265158,2122.6,2121.0,1.17866742]
[1772674744407,0.46265158,2122.6,2121.0,1.25839714]
[1772674744612,0.46265158,2122.6,2121.1,0.07972972]
[1772674744808,0.46265158,2122.6,2121.2,0.07972972]
[1772674745327,1.64046382,2122.6,2121.4,0.07972972]
[1772674745527,0.46265158,2122.5,2121.4,0.07972972]
[1772674745837,5.80358142,2122.7,2121.5,0.07972972]
[1772674745838,1.09246942,2122.7,2121.5,0.07972972]
[1772674746010,0.46265158,2122.6,2121.6,1.06]
[1772674747337,0.46265158,2122.4,2121.7,1.17830041]
[1772674748636,2.27024329,2122.7,2121.7,1.17940041]
[1772674748637,0.46265158,2122.6,2121.7,1.17940041]
[1772674750293,0.46265158,2122.4,2121.7,0.0011]
[1772674752474,1.64057392,2122.4,2121.7,0.0011]
[1772674752831,0.46265158,2122.4,2121.7,0.0011]
[1772674753033,0.46265158,2122.5,2121.7,0.0011]
[1772674754267,1.17783833,2122.6,2121.7,0.0011]
[1772674754268,2.73290723,2122.7,2121.7,0.08082972]
[1772674755674,1.555121,2122.7,2121.7,0.08082972]
[1772674755849,1.09246942,2122.7,2121.7,0.08082972]
[1772674756044,1.555121,2122.7,2121.7,0.08082972]
[1772674756266,0.46265158,2122.6,2121.8,1.17824488]
[1772674756446,0.46265158,2122.6,2121.8,2.24224488]
[1772674757034,0.46265158,2122.6,2121.7,1.17936425]
[1772674757241,0.46265158,2122.6,2121.7,2.24339341]
[1772674757971,0.46265158,2122.6,2121.7,1.0651]
[1772674758168,0.46265158,2122.4,2121.7,1.0651]
[1772674758369,0.46265158,2122.4,2121.7,2.2433911]
[1772674758940,0.46265158,2122.4,2121.5,0.0011]
[1772674759144,0.46265158,2122.4,2121.5,1.17950804]
[1772674759474,0.46265158,2122.4,2121.5,1.66479518]
[1772674759969,1.17783852,2122.6,2121.6,0.48528714]
[1772674760175,2.75243605,2122.7,2121.9,1.17818935]
[1772674760372,1.57464071,2122.7,2121.9,1.17818935]
[1772674760674,1.09246942,2122.7,2122.0,0.48528714]
[1772674761053,0.001,2122.8,2121.9,1.17818935]
[1772674761054,0.001,2122.8,2122.1,0.48528714]
[1772674761254,0.001,2122.8,2122.2,2.67995676]
[1772674761451,1.17869101,2122.8,2122.1,1.065]
[1772674761653,0.001,2122.8,2122.2,1.065]
[1772674761979,0.001,2122.8,2122.3,0.48528714]
[1772674762279,0.001,2122.8,2122.4,1.17791179]
[1772674762452,0.001,2122.8,2122.3,2.2429297]
[1772674763200,0.001,2122.8,2122.3,2.72821684]
[1772674763357,0.001,2122.8,2122.3,2.2429297]
[1772674763765,0.001,2122.8,2122.4,1.55028714]
[1772674763961,0.48217129,2123.4,2122.4,1.55028714]
[1772674764178,1.65956051,2123.4,2122.4,1.55028714]
[1772674764374,1.65956051,2123.4,2122.5,1.1778563]
[1772674764850,0.48217129,2123.3,2122.6,1.066]
[1772674765482,0.48217129,2123.1,2122.2,1.066]
[1772674766284,1.65973627,2123.1,2122.3,1.17796729]
[1772674768074,1.17756498,2123.1,2122.3,1.63251677]
[1772674768784,1.17741251,2123.3,2122.4,0.45454948]
[1772674768989,1.17730162,2123.5,2122.4,0.45454948]
[1772674769189,1.65451458,2123.5,2122.4,0.45454948]
[1772674769354,0.47721296,2123.4,2122.5,1.066]
[1772674771489,0.47721296,2123.4,2122.6,1.17780081]
[1772674771490,1.17741251,2123.3,2122.6,1.17780081]
[1772674771783,6.04877833,2124.2,2122.5,0.45454948]
[1772674771784,0.47721296,2123.5,2122.5,0.45454948]
[1772674771954,0.47721296,2123.5,2122.6,1.067]
[1772674773380,0.47721296,2123.3,2122.6,1.067]
[1772674773562,0.47721296,2123.3,2122.6,2.2447888]
[1772674773766,0.47821296,2123.3,2122.6,1.067]
[1772674775481,0.47721296,2123.1,2122.6,1.067]
[1772674776059,0.47721296,2122.9,2121.6,0.0011]
[1772674776287,0.47721296,2122.7,2121.6,0.0011]
[1772674776490,3.16825334,2122.6,2121.7,1.63394977]
[1772674776704,0.47721296,2122.8,2121.7,1.63394977]
[1772674776892,3.1682385,2122.7,2121.7,1.63394977]
[1772674777202,0.47721296,2122.8,2121.8,0.45454948]
[1772674777378,0.37039395,2122.7,2121.8,0.45454948]
[1772674777700,0.47721296,2122.8,2121.8,0.45454948]
[1772674778002,1.17774532,2122.7,2121.9,1.17818935]
[1772674779186,1.17774532,2122.7,2121.9,1.63273883]
[1772674779384,0.47721296,2122.8,2121.9,1.63273883]
[1772674779704,1.65468093,2123.2,2122.2,0.45454948]
[1772674779876,1.65468093,2123.2,2121.9,1.17818935]
[1772674779877,0.47721296,2123.1,2121.9,1.17818935]
[1772674780076,0.47721296,2123.1,2122.2,1.064]
[1772674780776,0.47721296,2123.1,2121.9,1.17818935]
[1772674781005,0.47721296,2122.9,2121.7,1.17940033]
[1772674781192,0.47721296,2122.7,2121.7,1.17940033]
[1772674781387,0.47721296,2122.7,2121.8,0.45454948]
[1772674781889,1.17780081,2122.6,2121.9,1.17818935]
[1772674782406,1.17780081,2122.6,2121.8,0.45454948]
[1772674782612,1.17780081,2122.6,2121.8,1.63277815]
[1772674782906,1.17780081,2122.6,2121.8,0.45454948]
[1772674783605,1.17780081,2122.6,2121.7,1.0661]
[1772674783606,0.47721296,2122.5,2121.7,1.0661]
[1772674784013,0.47721296,2122.3,2121.7,0.0011]
[1772674784983,0.47721296,2122.3,2121.5,0.0011]
[1772674785177,0.47721296,2122.1,2120.6,1.17887134]
[1772674785376,0.47721296,2121.7,2120.6,1.17887134]
[1772674785606,0.47721296,2122.0,2120.6,0.45454948]
[1772674785993,0.47721296,2121.8,2120.6,1.63342249]
[1772674786195,0.47721296,2121.8,2120.7,0.45454948]
[1772674786411,0.47721296,2121.8,2121.6,0.0011]
[1772674786578,1.17818935,2121.9,2121.6,0.0011]
[1772674787082,1.17818935,2121.9,2121.4,0.0011]
[1772674787297,0.47721296,2121.8,2121.4,0.0011]
[1772674787498,1.17818935,2121.9,2121.4,0.0011]
[1772674788297,4.71275743,2122.0,2121.4,0.0011]
[1772674788989,5.18081833,2122.0,2121.4,0.0011]
[1772674790181,1.1780228,2122.2,2121.4,1.17956705]
[1772674791107,1.6460837,2122.2,2121.4,0.0011]
[1772674791292,1.6460837,2122.2,2121.4,1.0661]
[1772674791614,0.4680609,2122.1,2120.9,1.17872406]
[1772674792282,0.4680609,2121.9,2120.9,1.63536086]
[1772674792515,0.4680609,2121.9,2121.0,0.4566368]
[1772674793401,1.64611629,2122.2,2121.0,0.4566368]
[1772674793609,1.17805539,2122.2,2121.0,0.4566368]
[1772674793989,1.17800282,2122.3,2121.0,0.4566368]
[1772674794399,5.17982477,2122.4,2121.2,0.4566368]
[1772674794785,1.17791179,2122.4,2121.2,0.4566368]
[1772674796412,1.64586171,2122.6,2121.4,0.4566368]
[1772674796619,0.4680609,2122.5,2121.5,1.5226368]
[1772674797295,0.4680609,2122.5,2121.6,0.4566368]
[1772674798522,0.001,2122.2,2121.7,1.17830041]
[1772674798889,0.001,2122.2,2121.8,0.4566368]
[1772674800042,0.001,2122.2,2121.7,1.066]
[1772674800619,0.001,2122.2,2121.5,1.17836741]
[1772674800620,0.4690609,2122.2,2121.5,1.17836741]
[1772674800813,0.4690609,2122.2,2121.6,1.066]
[1772674801187,0.001,2122.2,2121.6,1.066]
[1772674801411,1.17760564,2123.0,2121.7,0.4566368]
[1772674801615,1.70513489,2122.8,2121.7,0.4566368]
[1772674801818,2.17319579,2122.8,2121.7,0.4566368]
[1772674802044,0.4680609,2122.7,2121.8,1.066]
[1772674802604,1.64586171,2122.6,2121.8,1.066]
[1772674802825,0.4680609,2122.5,2121.8,1.066]
[1772674803406,0.4680609,2122.5,2121.7,1.067]
[1772674803728,0.4680609,2122.5,2121.7,1.5236368]
[1772674803899,0.4680609,2122.5,2121.7,1.067]
[1772674804905,0.4680609,2122.3,2121.7,2.24528273]
[1772674805222,4.71164719,2122.6,2121.8,0.4566368]
[1772674805223,1.17784486,2122.6,2121.8,0.4566368]
[1772674805925,1.17778959,2122.7,2121.8,0.4566368]
[1772674806503,0.52744204,2122.8,2121.8,0.4566368]
[1772674806708,0.52744204,2122.8,2122.0,0.4566368]
[1772674806912,0.52744204,2122.8,2122.2,0.4566368]
[1772674807106,1.17754236,2123.1,2122.4,0.4566368]
[1772674807811,0.001,2123.3,2122.4,0.4566368]
[1772674808828,0.001,2123.3,2122.6,0.4566368]
[1772674810208,0.001,2123.3,2122.6,1.068]
[1772674810639,0.001,2123.3,2122.6,1.5246368]
[1772674810838,0.001,2123.3,2122.7,1.17774532]
[1772674813121,0.001,2123.3,2122.8,1.068]
[1772674815914,0.001,2123.3,2122.9,1.17763436]
[1772674816116,0.001,2123.3,2122.8,1.068]
[1772674816328,0.4680609,2123.2,2122.3,1.17796729]
[1772674816545,0.4680609,2123.2,2122.4,1.069]
[1772674818244,0.4680609,2123.0,2122.2,1.07]
[1772674820256,1.17763436,2122.9,2122.2,1.07]
[1772674820453,0.45395662,2122.8,2122.2,1.07]
[1772674821148,0.45395662,2122.8,2121.8,0.0011]
[1772674821353,0.45395662,2122.8,2121.5,1.17951039]
[1772674821645,1.17763436,2122.9,2121.5,1.17951039]
[1772674821646,0.45395662,2122.6,2121.5,1.17951039]
[1772674821841,0.45395662,2122.6,2121.5,1.17950274]
[1772674822220,0.45395662,2122.6,2121.6,0.49597614]
[1772674822431,1.63181292,2122.5,2121.7,1.17830041]
[1772674822618,0.45395662,2122.4,2121.7,0.0011]
[1772674823028,1.1778563,2122.5,2121.7,1.56207614]
[1772674824035,0.45395662,2122.7,2121.8,0.49597614]
[1772674824036,1.63172395,2122.7,2121.8,0.49597614]
[1772674824243,1.17776733,2122.7,2121.8,0.49597614]
[1772674824467,1.63159098,2122.9,2121.9,1.17818935]
[1772674824759,1.63159098,2122.9,2121.9,1.67416549]
[1772674825551,1.63159098,2122.9,2121.9,1.17818935]
[1772674825552,0.45395662,2122.8,2121.9,1.17818935]
[1772674826550,1.17774532,2122.7,2121.8,4.71275743]
[1772674826750,1.6554942,2122.7,2121.8,4.71275743]
[1772674827046,0.47774888,2122.6,2121.9,1.068]
[1772674828825,1.65560518,2122.5,2121.9,2.24614642]
[1772674829026,0.47774888,2122.8,2121.9,2.71589483]
[1772674829245,0.47774888,2122.8,2122.0,0.46974841]
[1772674829246,1.65548331,2122.8,2122.0,0.46974841]
[1772674829658,0.47774888,2122.7,2121.9,2.24614642]
[1772674830446,0.47774888,2122.7,2121.9,1.17814642]
[1772674830653,0.47774888,2122.7,2121.9,1.069]
[1772674831056,0.47774888,2122.5,2121.9,1.069]
[1772674831354,0.47774888,2122.5,2121.7,0.0011]
[1772674831556,0.47774888,2122.3,2121.5,0.0011]
[1772674831737,0.47774888,2122.1,2121.5,0.0011]
[1772674832253,0.47774888,2122.1,2121.1,0.0011]
[1772674832553,0.47774888,2121.9,2121.1,0.0011]
[1772674833057,0.47774888,2121.7,2121.1,0.0011]
[1772674834856,0.47774888,2121.7,2121.4,0.0011]
[1772674835065,1.65610483,2121.6,2121.4,0.0011]
[1772674835265,0.47774888,2121.5,2121.4,0.0011]
[1772674836137,0.47774888,2121.5,2121.1,0.0011]
[1772674836459,0.47774888,2122.2,2121.2,0.47084841]
[1772674836964,0.47774888,2122.2,2121.2,0.0011]
[1772674837167,0.47774888,2122.0,2121.2,0.0011]
[1772674838057,0.47774888,2122.0,2121.0,1e-08]
[1772674838359,0.14948499,2121.9,2120.6,1.058]
[1772674838549,0.14948499,2121.9,2120.5,0.1195908]
[1772674838550,0.47774888,2121.7,2120.5,0.1195908]
[1772674839167,0.47774888,2121.4,2120.5,0.1195908]
[1772674840152,0.47774888,2121.2,2120.0,0.0251]
[1772674840462,0.47774888,2121.2,2120.1,0.46974841]
[1772674840972,0.47774888,2121.5,2120.2,1.051]
[1772674841129,0.47774888,2121.3,2120.3,1.052]
[1772674841329,0.47774888,2121.3,2120.1,1.64892719]
[1772674841565,0.47774888,2121.3,2120.2,0.46974841]
[1772674842644,1.17844904,2121.5,2120.2,0.46974841]
[1772674842837,0.47774888,2121.6,2120.2,0.46974841]
[1772674842838,1.65613489,2121.6,2120.2,0.46974841]
[1772674843037,0.47774888,2121.5,2120.2,0.46974841]
[1772674843254,1.65621593,2121.4,2120.4,1.64877123]
[1772674843766,0.47774888,2121.3,2120.5,1.057]
[1772674844362,0.47774888,2121.3,2120.3,1.058]
[1772674845336,1.65632704,2121.2,2120.2,4.71645529]
[1772674845563,0.47774888,2121.1,2120.1,5.77661376]
[1772674846139,0.47774888,2121.1,2120.2,0.46974841]
[1772674846338,0.47774888,2121.1,2120.7,0.0011]
[1772674846636,0.47774888,2121.1,2120.1,1.17918966]
[1772674846860,0.47774888,2121.1,2120.5,0.0011]
[1772674847564,0.47774888,2121.5,2120.5,0.47084841]
[1772674847743,1.65619763,2121.5,2120.5,0.47084841]
[1772674848069,0.47774888,2121.4,2120.5,0.47084841]
[1772674848676,0.47774888,2121.4,2120.6,1.064]
[1772674849539,0.47774888,2121.4,2120.7,1.17885603]
[1772674849941,0.001,2121.7,2120.8,0.48161764]
[1772674849942,1.67659643,2121.7,2120.8,0.48161764]
[1772674850244,0.001,2121.7,2120.8,0.48161764]
[1772674850457,1.17930288,2121.7,2120.8,0.48161764]
[1772674850774,1.6765837,2121.7,2120.9,1.066]
[1772674851272,1.6765837,2121.7,2121.0,1.067]
[1772674852480,1.6765837,2121.7,2121.1,1.068]
[1772674852660,0.001,2121.7,2121.1,1.068]
[1772674852860,1.17930974,2121.7,2121.1,1.068]
[1772674853061,0.001,2121.7,2121.1,1.068]
[1772674853677,1.17930645,2121.7,2121.1,1.068]
[1772674854247,1.17930682,2121.7,2121.1,1.068]
[1772674854652,1.17930682,2121.7,2121.2,1.17857816]
[1772674854653,0.001,2121.7,2121.2,1.17857816]
[1772674855178,0.001,2121.7,2121.2,1.6601958]
[1772674855484,1.67395598,2122.0,2121.3,1.07]
[1772674855670,2.1712368,2122.0,2121.3,1.07]
[1772674855872,0.49581523,2122.0,2121.3,1.55161764]
[1772674856179,1.67395285,2122.0,2121.3,1.55161764]
[1772674856552,0.49581523,2122.0,2121.3,1.55161764]
[1772674856753,0.49581523,2122.0,2121.4,1.17846705]
[1772674856981,1.67395824,2122.0,2121.4,1.17846705]
[1772674858575,1.67395824,2122.0,2121.5,1.072]
[1772674859286,0.001,2121.8,2121.5,1.072]
[1772674859684,0.001,2121.8,2121.4,1.17844159]
[1772674859857,0.001,2121.8,2121.5,1.072]
[1772674860359,0.49828082,2121.8,2121.2,1.178545]
[1772674860558,0.49828082,2121.8,2121.3,1.073]
[1772674861079,1.67657976,2121.8,2121.3,2.25150871]
[1772674861385,1.67657976,2121.8,2121.3,1.073]
[1772674861594,0.001,2121.8,2121.3,1.073]
[1772674861769,0.49581523,2122.0,2121.4,0.48161764]
[1772674862084,1.67394939,2122.0,2121.3,1.073]
[1772674862485,0.49728082,2121.9,2121.3,1.073]
[1772674862989,1.67394939,2122.0,2121.3,1.073]
[1772674862990,0.49581523,2122.0,2121.5,1.66002914]
[1772674863156,1.67515091,2122.5,2121.6,0.48161764]
[1772674865378,1.67515091,2122.5,2121.7,1.17830041]
[1772674866468,1.67515091,2122.5,2121.8,1.075]
[1772674867559,0.49728082,2122.4,2121.3,1.1785226]
[1772674867766,0.49728082,2122.4,2121.4,1.075]
[1772674868400,0.49728082,2122.4,2121.5,0.48161764]
[1772674868693,0.49728082,2122.6,2121.5,0.48161764]
[1772674869396,0.49728082,2122.6,2121.6,1.076]
[1772674869566,0.49728082,2122.4,2121.6,2.25434366]
[1772674871091,0.49728082,2122.4,2121.6,2.7359613]
[1772674871293,0.49728082,2122.4,2121.6,2.7370613]
[1772674871492,0.001,2122.3,2121.6,2.7370613]
[1772674871701,1.17770976,2122.8,2121.8,0.48161764]
[1772674871920,1.17858665,2123.0,2121.8,0.48161764]
[1772674872076,1.67586747,2123.0,2121.8,0.48161764]
[1772674872805,0.49728082,2122.9,2121.8,0.48161764]
[1772674873007,0.49728082,2122.9,2121.9,1.55861764]
[1772674873298,0.49728082,2122.9,2121.9,0.48161764]
[1772674873487,0.49728082,2122.9,2121.7,0.32246817]
[1772674873488,0.49728082,2122.9,2122.0,1.078]
[1772674873661,0.49728082,2122.7,2122.0,1.078]
[1772674873864,0.49728082,2122.7,2122.0,2.25613268]
[1772674874499,0.49728082,2122.7,2122.0,1.078]
[1772674875464,0.49728082,2122.7,2121.7,0.32246817]
[1772674875666,0.49728082,2122.5,2121.7,0.32246817]
[1772674876205,1.17780081,2122.6,2121.1,0.48271764]
[1772674876206,0.49728082,2122.3,2121.1,0.0011]
[1772674876370,0.49728082,2122.1,2121.1,0.0011]
[1772674876569,0.49728082,2121.9,2121.1,0.0011]
[1772674876876,0.49728082,2121.7,2120.7,2.25294927]
[1772674877472,0.49728082,2121.7,2120.7,1.17994927]
[1772674877672,0.49728082,2121.7,2120.7,2.25394927]
[1772674877872,0.49728082,2121.5,2120.7,2.25394927]
[1772674880571,0.49728082,2121.5,2120.7,2.72340211]
[1772674880572,1.67573619,2121.5,2120.7,2.72340211]
[1772674883676,1.17833832,2121.7,2120.9,0.47055284]
[1772674883876,0.001,2121.3,2120.9,0.47055284]
[1772674884399,0.001,2121.3,2121.0,1.077]
[1772674885070,0.001,2121.3,2121.0,2.25567585]
[1772674887208,0.001,2121.3,2121.1,1.077]
[1772674888893,0.001,2121.3,2121.1,1.078]
[1772674890501,1.17807831,2122.1,2121.1,1.54572483]
[1772674890707,0.46028775,2122.0,2121.1,1.54572483]
[1772674890882,0.46028775,2121.8,2120.9,0.0011]
[1772674891084,0.46028775,2121.8,2120.9,1.0791]
[1772674892021,0.46028775,2121.8,2120.9,2.25784401]
[1772674892517,0.46028775,2121.8,2120.9,2.25784362]
[1772674893005,0.46028775,2121.6,2120.9,1.0791]
[1772674893518,0.46028775,2121.6,2120.9,2.25783897]
[1772674893699,0.46028775,2121.6,2120.9,0.0011]
[1772674893899,0.46028775,2121.6,2121.0,1.079]
[1772674894922,0.46028775,2121.4,2120.9,1.0801]
[1772674896122,0.46028775,2121.4,2120.9,0.0011]
[1772674896302,0.46028775,2121.4,2121.1,0.0011]
[1772674896613,0.46128775,2121.4,2121.1,0.0011]
[1772674897116,1.1785226,2121.3,2121.1,0.0011]
[1772674897319,0.46028775,2121.2,2120.9,0.0011]
[1772674897612,0.46028775,2121.2,2120.7,0.0011]
[1772674898311,0.46028775,2121.2,2120.5,0.0011]
[1772674898522,0.46028775,2121.0,2120.2,0.0011]
[1772674899323,0.46028775,2120.8,2120.2,0.0011]
[1772674901199,0.46028775,2120.8,2119.6,2.57407977]
[1772674901396,0.46028775,2120.6,2119.6,0.31665112]
[1772674901688,0.46028775,2120.4,2119.6,0.31665112]
[1772674902198,0.46028775,2120.2,2119.6,0.31665112]
[1772674903210,0.46028775,2120.2,2119.6,1e-08]
[1772674903423,0.46028775,2120.0,2119.6,1e-08]
[1772674905422,0.46028775,2119.8,2119.6,1e-08]
[1772674906323,0.46028775,2119.8,2119.2,0.47055796]
[1772674907308,1.17930091,2119.9,2119.2,1.6502091]
[1772674907843,1.17930091,2119.9,2119.2,0.47055796]
[1772674908200,1.63958866,2119.9,2119.8,0.0011]
[1772674908527,1.63958866,2119.9,2119.5,0.0011]
[1772674908743,0.45770188,2119.8,2119.3,0.0011]
[1772674909340,1.17930091,2119.9,2119.3,0.0011]
[1772674909548,1.63700279,2119.9,2119.3,0.0011]
[1772674909845,0.45770188,2119.8,2119.3,0.0011]
[1772674910007,0.45770188,2119.8,2118.9,1.14800016]
[1772674910200,0.45770188,2119.8,2118.9,2.32785442]
[1772674910525,0.45770188,2119.8,2118.9,1.14800016]
[1772674910826,0.45770188,2119.8,2118.9,0.66209068]
[1772674911033,0.45770188,2119.7,2118.9,0.66209068]
[1772674911599,0.45770188,2119.5,2118.9,0.66209068]
[1772674913822,0.45770188,2119.3,2118.9,0.66209068]
[1772674914226,1.17957912,2119.4,2118.9,0.66209068]
[1772674914804,1.17957912,2119.4,2118.9,1.84193831]
[1772674915213,1.17957912,2119.4,2118.9,0.66209068]
[1772674915826,0.45770188,2119.3,2118.9,0.66209068]
[1772674916329,0.45770188,2119.3,2118.4,4.72052624]
[1772674916330,0.41657028,2119.2,2117.9,0.48590948]
[1772674916831,3.42327051,2119.3,2117.9,0.48590948]
[1772674916832,0.41657028,2119.0,2117.9,0.48590948]
[1772674917198,0.41657028,2119.0,2117.5,0.29608469]
[1772674917199,0.41657028,2118.8,2117.6,0.48590948]
[1772674918029,0.41657028,2118.6,2117.6,0.48590948]
[1772674918425,0.41657028,2118.6,2117.6,0.43590948]
[1772674918728,0.41657028,2118.6,2117.4,0.48590948]
[1772674919829,0.45770188,2118.4,2117.4,0.48590948]
[1772674919998,0.45770188,2118.2,2117.4,0.48590948]
[1772674920695,0.45770188,2118.2,2117.2,1.18076171]
[1772674921130,0.45770188,2118.2,2117.2,1.66667119]
[1772674921298,0.45770188,2118.2,2117.3,0.48590948]
[1772674921499,0.45770188,2118.2,2117.1,0.48590948]
[1772674921926,0.45770188,2118.0,2117.1,0.48590948]
[1772674922410,0.45770188,2118.0,2116.9,0.48590948]
[1772674923603,0.45770188,2118.0,2116.7,1.68694983]
[1772674923933,1.18052604,2117.7,2117.0,0.48590948]
[1772674924329,4.72132636,2118.1,2117.0,0.48590948]
[1772674924722,0.45770188,2118.0,2117.0,0.48590948]
[1772674925813,1.18024737,2118.2,2117.0,0.48590948]
[1772674926014,1.18024737,2118.2,2117.2,0.48590948]
[1772674926234,1.63794925,2118.2,2117.2,0.48590948]
[1772674926420,0.45770188,2118.1,2117.2,0.48590948]
[1772674926729,0.45770188,2118.1,2117.0,0.48590948]
[1772674928031,1.18035882,2118.0,2117.2,0.48590948]
[1772674928741,1.18035882,2118.0,2117.1,1.18086061]
[1772674928742,1.18035882,2118.0,2117.3,0.48590948]
[1772674929124,0.45770188,2117.9,2117.0,0.48590948]
[1772674929435,0.45770188,2117.9,2117.0,1.66681571]
[1772674930135,1.18047029,2117.8,2117.0,1.66681571]
[1772674930333,1.63817217,2117.8,2117.0,1.66681539]
[1772674931418,1.63817217,2117.8,2117.0,0.48590948]
[1772674931739,0.45770188,2117.7,2117.0,0.48590948]
[1772674932234,0.45770188,2117.5,2117.1,0.0011]
[1772674932407,1.18058179,2117.6,2117.1,0.0011]
[1772674932808,4.72232716,2117.7,2117.1,0.48700948]
[1772674932809,1.1805591,2117.7,2117.1,0.48700948]
[1772674933534,0.45770188,2117.6,2117.1,0.0011]
[1772674934208,1.63833942,2117.5,2117.1,0.0011]
[1772674934410,0.45770188,2117.4,2116.9,0.0011]
[1772674934608,0.45770188,2117.3,2116.7,0.02]
[1772674934829,1.33012253,2117.5,2116.8,0.48590948]
[1772674934830,1.18063754,2117.5,2116.8,0.48590948]
[1772674936463,4.72255017,2117.6,2116.9,1.66688165]
[1772674936610,5.18025205,2117.6,2116.9,0.48590948]
[1772674936928,0.45770188,2117.5,2116.7,0.02]
[1772674937128,0.45770188,2117.5,2116.3,0.65351998]
[1772674937129,0.45770188,2117.4,2116.3,0.65351998]
[1772674937529,0.45770188,2117.4,2116.3,0.1676105]
[1772674937733,0.29895978,2116.8,2115.7,0.8724082]
[1772674938019,0.29895978,2116.1,2115.6,6.1e-07]
[1772674938232,1.18153031,2115.9,2115.6,6.1e-07]
[1772674938425,1.18153031,2115.9,2114.9,0.006]
[1772674938426,0.29895978,2115.7,2114.9,0.006]
[1772674938848,0.29895978,2115.6,2114.9,0.006]
[1772674939161,2.49528594,2115.8,2114.9,1e-08]
[1772674939312,0.29895978,2115.3,2114.9,1e-08]
[1772674939622,0.29895978,2115.3,2114.3,1.60557366]
[1772674940019,0.29895978,2115.3,2114.3,2.78797448]
[1772674940219,1.64195978,2115.4,2114.3,2.07288312]
[1772674940435,1.18169786,2115.6,2114.4,0.46730946]
[1772674941143,0.14948499,2115.1,2114.3,1e-08]
[1772674941471,0.14948499,2115.1,2113.6,0.67502523]
[1772674941472,0.29895978,2114.9,2113.6,0.67502523]